[Event "Titled Tuesday Blitz January 10 Early 2023"]
[White "Ruiz Aguilar, Pablo Alexander"]
[Black "Kirillov, Dmitry"]
[WhiteFideId "4401352"]
[BlackFideId "34180572"]
[WhiteElo "2161"]
[BlackElo "2179"]
[Result "1/2-1/2"]
[Round "05"]
[TimeControl "180+2"]
[Date "2023.01.10"]
[WhiteClock "0:00:26"]
[BlackClock "0:00:06"]

1. e4 {[%clk 0:02:52]}  c6 {[%clk 0:02:55]} 2. d4 {[%clk 0:02:52]}  d5 {[%clk 0:02:56]} 3. exd5 {[%clk 0:02:52]}  cxd5 {[%clk 0:02:54]} 4. c4 {[%clk 0:02:53]}  Nf6 {[%clk 0:02:52]} 5. Nc3 {[%clk 0:02:53]}  Nc6 {[%clk 0:02:52]} 6. Bg5 {[%clk 0:02:52]}  e6 {[%clk 0:02:53]} 7. c5 {[%clk 0:02:50]}  Be7 {[%clk 0:02:40]} 8. Nf3 {[%clk 0:02:49]}  O-O {[%clk 0:02:39]} 9. Bb5 {[%clk 0:02:49]}  Ne4 {[%clk 0:02:39]} 10. Bxe7 {[%clk 0:02:45]}  Qxe7 {[%clk 0:02:38]} 11. Bxc6 {[%clk 0:02:43]}  bxc6 {[%clk 0:02:39]} 12. O-O {[%clk 0:02:42]}  Qc7 {[%clk 0:02:35]} 13. Re1 {[%clk 0:02:41]}  Rb8 {[%clk 0:02:30]} 14. Nxe4 {[%clk 0:02:34]}  dxe4 {[%clk 0:02:27]} 15. Ng5 {[%clk 0:02:35]}  Rxb2 {[%clk 0:02:18]} 16. Nxe4 {[%clk 0:02:34]}  e5 {[%clk 0:01:58]} 17. Nd6 {[%clk 0:02:31]}  Qa5 {[%clk 0:01:28]} 18. Rxe5 {[%clk 0:02:21]}  Be6 {[%clk 0:01:22]} 19. Re2 {[%clk 0:01:44]}  Rfb8 {[%clk 0:01:11]} 20. Rxb2 {[%clk 0:01:44]}  Rxb2 {[%clk 0:01:11]} 21. Rb1 {[%clk 0:01:41]}  Qxa2 {[%clk 0:01:09]} 22. Rxb2 {[%clk 0:01:41]}  Qxb2 {[%clk 0:01:10]} 23. h3 {[%clk 0:01:34]}  a5 {[%clk 0:00:55]} 24. Qf3 {[%clk 0:01:18]}  Bd5 {[%clk 0:00:46]} 25. Qf5 {[%clk 0:01:16]}  Be6 {[%clk 0:00:15]} 26. Qe4 {[%clk 0:01:16]}  a4 {[%clk 0:00:05]} 27. Qxc6 {[%clk 0:01:15]}  Qc1+ {[%clk 0:00:05]} 28. Kh2 {[%clk 0:01:08]}  Qf4+ {[%clk 0:00:06]} 29. Kg1 {[%clk 0:00:44]}  Qc1+ {[%clk 0:00:05]} 30. Kh2 {[%clk 0:00:43]}  Qf4+ {[%clk 0:00:06]} 31. Kg1 {[%clk 0:00:26]}  Qc1+ {[%clk 0:00:06]} 1/2-1/2


[Site "https://www.chess.com"]

[Event "Titled Tuesday Blitz January 10 Early 2023"]
[White "Salman, Pavel"]
[Black "Bobomurodova, Maftuna"]
[WhiteFideId "24153753"]
[BlackFideId "14207400"]
[WhiteElo "2287"]
[BlackElo "1946"]
[Result "1-0"]
[Round "05"]
[TimeControl "180+2"]
[Date "2023.01.10"]
[WhiteClock "0:01:41"]
[BlackClock "0:00:17"]

1. Nf3 {[%clk 0:02:59]}  d5 {[%clk 0:02:58]} 2. g3 {[%clk 0:02:56]}  c5 {[%clk 0:02:57]} 3. Bg2 {[%clk 0:02:57]}  Nc6 {[%clk 0:02:57]} 4. O-O {[%clk 0:02:57]}  Nf6 {[%clk 0:02:56]} 5. d3 {[%clk 0:02:58]}  e5 {[%clk 0:02:55]} 6. Nbd2 {[%clk 0:02:58]}  Be7 {[%clk 0:02:55]} 7. e4 {[%clk 0:02:59]}  O-O {[%clk 0:02:55]} 8. exd5 {[%clk 0:02:59]}  Nxd5 {[%clk 0:02:54]} 9. Nc4 {[%clk 0:03:00]}  f6 {[%clk 0:02:49]} 10. a4 {[%clk 0:03:00]}  b6 {[%clk 0:02:41]} 11. Nfd2 {[%clk 0:02:59]}  Bb7 {[%clk 0:02:39]} 12. c3 {[%clk 0:02:57]}  Re8 {[%clk 0:02:30]} 13. Qb3 {[%clk 0:02:52]}  Kh8 {[%clk 0:02:27]} 14. Ne4 {[%clk 0:02:46]}  Nc7 {[%clk 0:02:18]} 15. h4 {[%clk 0:02:43]}  Qxd3 {[%clk 0:02:00]} 16. Rd1 {[%clk 0:02:43]}  Qe2 {[%clk 0:02:00]} 17. Be3 {[%clk 0:02:29]}  Rad8 {[%clk 0:01:54]} 18. Re1 {[%clk 0:02:13]}  Qg4 {[%clk 0:01:49]} 19. Nxc5 {[%clk 0:02:07]}  Bxc5 {[%clk 0:01:43]} 20. Bxc5 {[%clk 0:02:04]}  Ba8 {[%clk 0:01:25]} 21. Nd6 {[%clk 0:01:41]}  Na5 {[%clk 0:00:19]} 22. Nf7+ {[%clk 0:01:40]}  Kg8 {[%clk 0:00:19]} 23. Nh6+ {[%clk 0:01:41]}  Kh8 {[%clk 0:00:17]} 24. Qg8+ {[%clk 0:01:41]} 1-0


[Site "https://www.chess.com"]

[Event "Titled Tuesday Blitz January 10 Early 2023"]
[White "Donskov, Anatoly"]
[Black "Barbashin, Igor"]
[WhiteFideId "24143413"]
[BlackFideId "4155718"]
[WhiteElo "2279"]
[BlackElo "2169"]
[Result "1-0"]
[Round "05"]
[TimeControl "180+2"]
[Date "2023.01.10"]
[WhiteClock "0:00:12"]
[BlackClock "0:00:01"]

1. e4 {[%clk 0:03:00]}  d5 {[%clk 0:02:59]} 2. exd5 {[%clk 0:03:00]}  Nf6 {[%clk 0:02:59]} 3. Bb5+ {[%clk 0:02:59]}  Nbd7 {[%clk 0:02:57]} 4. d4 {[%clk 0:02:58]}  Nxd5 {[%clk 0:02:56]} 5. Nf3 {[%clk 0:02:58]}  g6 {[%clk 0:02:55]} 6. O-O {[%clk 0:02:57]}  Bg7 {[%clk 0:02:55]} 7. Bc4 {[%clk 0:02:52]}  N7f6 {[%clk 0:02:50]} 8. h3 {[%clk 0:02:51]}  O-O {[%clk 0:02:49]} 9. Re1 {[%clk 0:02:48]}  b6 {[%clk 0:02:46]} 10. Bb3 {[%clk 0:02:43]}  e6 {[%clk 0:02:37]} 11. c4 {[%clk 0:02:37]}  Ne7 {[%clk 0:02:36]} 12. Nc3 {[%clk 0:02:32]}  Bb7 {[%clk 0:02:35]} 13. Bf4 {[%clk 0:02:16]}  Nf5 {[%clk 0:01:57]} 14. Be5 {[%clk 0:02:16]}  Bxf3 {[%clk 0:01:52]} 15. Qxf3 {[%clk 0:01:57]}  Nxd4 {[%clk 0:01:49]} 16. Qb7 {[%clk 0:01:50]}  c5 {[%clk 0:01:31]} 17. Rad1 {[%clk 0:01:50]}  Nd7 {[%clk 0:01:22]} 18. Bxg7 {[%clk 0:01:02]}  Kxg7 {[%clk 0:01:23]} 19. Nb5 {[%clk 0:01:02]}  Qc8 {[%clk 0:00:43]} 20. Qxc8 {[%clk 0:00:54]}  Rfxc8 {[%clk 0:00:44]} 21. Nxd4 {[%clk 0:00:54]}  cxd4 {[%clk 0:00:44]} 22. Rxd4 {[%clk 0:00:55]}  Nc5 {[%clk 0:00:44]} 23. Bc2 {[%clk 0:00:53]}  Rd8 {[%clk 0:00:39]} 24. Red1 {[%clk 0:00:52]}  Rxd4 {[%clk 0:00:39]} 25. Rxd4 {[%clk 0:00:53]}  Rc8 {[%clk 0:00:39]} 26. b4 {[%clk 0:00:48]}  Na6 {[%clk 0:00:34]} 27. a3 {[%clk 0:00:48]}  Kf6 {[%clk 0:00:32]} 28. Bb3 {[%clk 0:00:37]}  Ke7 {[%clk 0:00:31]} 29. Kf1 {[%clk 0:00:30]}  Nc7 {[%clk 0:00:31]} 30. Ke2 {[%clk 0:00:27]}  Ne8 {[%clk 0:00:31]} 31. f4 {[%clk 0:00:25]}  Nd6 {[%clk 0:00:29]} 32. g4 {[%clk 0:00:24]}  h5 {[%clk 0:00:29]} 33. Kd3 {[%clk 0:00:23]}  hxg4 {[%clk 0:00:28]} 34. hxg4 {[%clk 0:00:24]}  g5 {[%clk 0:00:20]} 35. fxg5 {[%clk 0:00:23]}  Rg8 {[%clk 0:00:17]} 36. c5 {[%clk 0:00:23]}  bxc5 {[%clk 0:00:17]} 37. bxc5 {[%clk 0:00:24]}  Nb5 {[%clk 0:00:17]} 38. Rb4 {[%clk 0:00:19]}  a5 {[%clk 0:00:14]} 39. Rxb5 {[%clk 0:00:18]}  Rxg5 {[%clk 0:00:13]} 40. Rb7+ {[%clk 0:00:18]}  Kf6 {[%clk 0:00:13]} 41. Kc4 {[%clk 0:00:13]}  Rxg4+ {[%clk 0:00:10]} 42. Kb5 {[%clk 0:00:14]}  Rg3 {[%clk 0:00:06]} 43. Bc4 {[%clk 0:00:13]}  Rxa3 {[%clk 0:00:04]} 44. c6 {[%clk 0:00:12]}  Ra1 {[%clk 0:00:03]} 45. c7 {[%clk 0:00:12]}  Rb1+ {[%clk 0:00:01]} 46. Kc6 {[%clk 0:00:12]} 1-0


[Site "https://www.chess.com"]

[Event "Titled Tuesday Blitz January 10 Early 2023"]
[White "Kuchava, Ana"]
[Black "Gonzalez, Francisco Silva"]
[WhiteFideId "13605348"]
[BlackFideId "1512285"]
[WhiteElo "2101"]
[BlackElo "2021"]
[Result "0-1"]
[Round "05"]
[TimeControl "180+2"]
[Date "2023.01.10"]
[WhiteClock "0:00:01"]
[BlackClock "0:01:10"]

1. d4 {[%clk 0:03:00]}  Nf6 {[%clk 0:02:50]} 2. Nf3 {[%clk 0:02:59]}  d5 {[%clk 0:02:46]} 3. c4 {[%clk 0:02:45]}  e6 {[%clk 0:02:45]} 4. Nc3 {[%clk 0:02:41]}  a6 {[%clk 0:02:44]} 5. Bg5 {[%clk 0:02:39]}  dxc4 {[%clk 0:02:43]} 6. a4 {[%clk 0:02:37]}  Nc6 {[%clk 0:02:41]} 7. e4 {[%clk 0:02:36]}  Na5 {[%clk 0:02:41]} 8. e5 {[%clk 0:02:33]}  h6 {[%clk 0:02:41]} 9. Bh4 {[%clk 0:02:12]}  g5 {[%clk 0:02:39]} 10. Nxg5 {[%clk 0:02:10]}  hxg5 {[%clk 0:02:40]} 11. Bxg5 {[%clk 0:02:11]}  Be7 {[%clk 0:02:40]} 12. exf6 {[%clk 0:02:06]}  Bxf6 {[%clk 0:02:40]} 13. Be3 {[%clk 0:01:57]}  b6 {[%clk 0:02:35]} 14. Qf3 {[%clk 0:01:55]}  Bb7 {[%clk 0:02:35]} 15. Qg3 {[%clk 0:01:44]}  Nb3 {[%clk 0:02:27]} 16. Rd1 {[%clk 0:01:40]}  Bd5 {[%clk 0:02:26]} 17. Be2 {[%clk 0:01:09]}  Qe7 {[%clk 0:02:14]} 18. Bf3 {[%clk 0:01:02]}  O-O-O {[%clk 0:02:12]} 19. Qg4 {[%clk 0:00:39]}  Kb8 {[%clk 0:02:05]} 20. O-O {[%clk 0:00:27]}  Rdg8 {[%clk 0:01:55]} 21. Nxd5 {[%clk 0:00:22]}  exd5 {[%clk 0:01:50]} 22. Qf5 {[%clk 0:00:21]}  Rd8 {[%clk 0:01:38]} 23. g3 {[%clk 0:00:14]}  Qe6 {[%clk 0:01:37]} 24. Qxe6 {[%clk 0:00:09]}  fxe6 {[%clk 0:01:35]} 25. Bg4 {[%clk 0:00:09]}  e5 {[%clk 0:01:33]} 26. dxe5 {[%clk 0:00:08]}  Bxe5 {[%clk 0:01:33]} 27. Be6 {[%clk 0:00:07]}  Rd6 {[%clk 0:01:25]} 28. Bxd5 {[%clk 0:00:05]}  Rhd8 {[%clk 0:01:25]} 29. Bf3 {[%clk 0:00:05]}  Bxb2 {[%clk 0:01:21]} 30. Rxd6 {[%clk 0:00:03]}  Rxd6 {[%clk 0:01:20]} 31. Rd1 {[%clk 0:00:03]}  c3 {[%clk 0:01:16]} 32. Rxd6 {[%clk 0:00:01]}  cxd6 {[%clk 0:01:16]} 33. Bd1 {[%clk 0:00:01]}  Na1 {[%clk 0:01:10]} 0-1


[Site "https://www.chess.com"]

[Event "Titled Tuesday Blitz January 10 Early 2023"]
[White "Tarnowska, Aleksandra"]
[Black "Kuznecovs, Nikita"]
[WhiteFideId "1180967"]
[BlackFideId "11604557"]
[WhiteElo "1835"]
[BlackElo "2287"]
[Result "0-1"]
[Round "05"]
[TimeControl "180+2"]
[Date "2023.01.10"]
[WhiteClock "0:00:01"]
[BlackClock "0:00:13"]

1. e4 {[%clk 0:03:00]}  e6 {[%clk 0:02:56]} 2. d4 {[%clk 0:02:59]}  d5 {[%clk 0:02:56]} 3. Nd2 {[%clk 0:03:00]}  Be7 {[%clk 0:02:52]} 4. c3 {[%clk 0:02:59]}  c5 {[%clk 0:02:52]} 5. exd5 {[%clk 0:02:54]}  exd5 {[%clk 0:02:52]} 6. Bb5+ {[%clk 0:02:52]}  Nc6 {[%clk 0:02:51]} 7. Ne2 {[%clk 0:02:47]}  Nf6 {[%clk 0:02:50]} 8. O-O {[%clk 0:02:46]}  O-O {[%clk 0:02:50]} 9. Nf3 {[%clk 0:02:45]}  a6 {[%clk 0:02:40]} 10. Bd3 {[%clk 0:02:40]}  c4 {[%clk 0:02:39]} 11. Bc2 {[%clk 0:02:40]}  Bg4 {[%clk 0:02:39]} 12. Ng3 {[%clk 0:02:37]}  Re8 {[%clk 0:02:15]} 13. h3 {[%clk 0:02:37]}  Bd7 {[%clk 0:02:13]} 14. Bf4 {[%clk 0:02:32]}  Bf8 {[%clk 0:02:11]} 15. Ne5 {[%clk 0:02:06]}  h6 {[%clk 0:01:52]} 16. Nxd7 {[%clk 0:01:37]}  Qxd7 {[%clk 0:01:52]} 17. Bf5 {[%clk 0:01:37]}  Qd8 {[%clk 0:01:47]} 18. Qf3 {[%clk 0:01:31]}  Ne7 {[%clk 0:01:37]} 19. Bc2 {[%clk 0:01:27]}  Ng6 {[%clk 0:01:37]} 20. Rfe1 {[%clk 0:01:01]}  Nxf4 {[%clk 0:01:18]} 21. Qxf4 {[%clk 0:01:00]}  Qb6 {[%clk 0:01:14]} 22. Rxe8 {[%clk 0:00:20]}  Rxe8 {[%clk 0:01:13]} 23. Rb1 {[%clk 0:00:21]}  Bd6 {[%clk 0:01:02]} 24. Qf5 {[%clk 0:00:21]}  Bxg3 {[%clk 0:01:00]} 25. fxg3 {[%clk 0:00:22]}  Qe6 {[%clk 0:00:58]} 26. Qxe6 {[%clk 0:00:16]}  fxe6 {[%clk 0:00:54]} 27. Re1 {[%clk 0:00:14]}  Nd7 {[%clk 0:00:53]} 28. Bg6 {[%clk 0:00:05]}  Re7 {[%clk 0:00:54]} 29. g4 {[%clk 0:00:04]}  Nb8 {[%clk 0:00:45]} 30. Kf2 {[%clk 0:00:04]}  Nc6 {[%clk 0:00:45]} 31. Kg3 {[%clk 0:00:04]}  e5 {[%clk 0:00:40]} 32. dxe5 {[%clk 0:00:02]}  Nxe5 {[%clk 0:00:35]} 33. Bf5 {[%clk 0:00:02]}  Kf7 {[%clk 0:00:34]} 34. Rd1 {[%clk 0:00:03]}  g6 {[%clk 0:00:23]} 35. Bc2 {[%clk 0:00:02]}  Ke6 {[%clk 0:00:23]} 36. Re1 {[%clk 0:00:02]}  Kd6 {[%clk 0:00:21]} 37. Rf1 {[%clk 0:00:02]}  Re6 {[%clk 0:00:14]} 38. Rf8 {[%clk 0:00:02]}  Kc5 {[%clk 0:00:14]} 39. Rc8+ {[%clk 0:00:02]}  Nc6 {[%clk 0:00:15]} 40. Rg8 {[%clk 0:00:01]}  g5 {[%clk 0:00:15]} 41. Rh8 {[%clk 0:00:02]}  d4 {[%clk 0:00:15]} 42. Bf5 {[%clk 0:00:02]}  Rd6 {[%clk 0:00:15]} 43. cxd4+ {[%clk 0:00:02]}  Nxd4 {[%clk 0:00:15]} 44. Rc8+ {[%clk 0:00:02]}  Kb4 {[%clk 0:00:11]} 45. a3+ {[%clk 0:00:02]}  Kb3 {[%clk 0:00:11]} 46. Rc7 {[%clk 0:00:02]}  b5 {[%clk 0:00:11]} 47. Ra7 {[%clk 0:00:01]}  Kxb2 {[%clk 0:00:11]} 48. a4 {[%clk 0:00:01]}  c3 {[%clk 0:00:11]} 49. axb5 {[%clk 0:00:01]}  axb5 {[%clk 0:00:12]} 50. Rc7 {[%clk 0:00:01]}  b4 {[%clk 0:00:12]} 51. Bh7 {[%clk 0:00:01]}  b3 {[%clk 0:00:12]} 52. Rc8 {[%clk 0:00:01]}  c2 {[%clk 0:00:13]} 0-1


[Site "https://www.chess.com"]

[Event "Titled Tuesday Blitz January 10 Early 2023"]
[White "Karabalis, Harilos"]
[Black "Levine, David"]
[WhiteFideId "4621808"]
[BlackFideId "2011611"]
[WhiteElo "2252"]
[BlackElo "2040"]
[Result "1-0"]
[Round "05"]
[TimeControl "180+2"]
[Date "2023.01.10"]
[WhiteClock "0:00:56"]
[BlackClock "0:00:20"]

1. c4 {[%clk 0:03:00]}  Nf6 {[%clk 0:02:55]} 2. Nc3 {[%clk 0:02:58]}  g6 {[%clk 0:02:55]} 3. g3 {[%clk 0:02:57]}  Bg7 {[%clk 0:02:55]} 4. Bg2 {[%clk 0:02:58]}  O-O {[%clk 0:02:56]} 5. e4 {[%clk 0:02:58]}  d6 {[%clk 0:02:56]} 6. Nge2 {[%clk 0:02:57]}  c5 {[%clk 0:02:54]} 7. O-O {[%clk 0:02:56]}  Nc6 {[%clk 0:02:55]} 8. d3 {[%clk 0:02:56]}  a6 {[%clk 0:02:51]} 9. h3 {[%clk 0:02:54]}  Rb8 {[%clk 0:02:45]} 10. a4 {[%clk 0:02:53]}  Ne8 {[%clk 0:02:43]} 11. Be3 {[%clk 0:02:51]}  Nc7 {[%clk 0:02:39]} 12. d4 {[%clk 0:02:50]}  cxd4 {[%clk 0:02:38]} 13. Nxd4 {[%clk 0:02:50]}  Nxd4 {[%clk 0:02:31]} 14. Bxd4 {[%clk 0:02:49]}  b5 {[%clk 0:02:30]} 15. cxb5 {[%clk 0:02:48]}  axb5 {[%clk 0:02:31]} 16. a5 {[%clk 0:02:45]}  b4 {[%clk 0:02:29]} 17. Nd5 {[%clk 0:02:43]}  Ne6 {[%clk 0:02:21]} 18. Bb6 {[%clk 0:02:31]}  Qd7 {[%clk 0:02:19]} 19. Qd2 {[%clk 0:02:29]}  Ba6 {[%clk 0:02:10]} 20. Rfc1 {[%clk 0:02:28]}  b3 {[%clk 0:01:37]} 21. h4 {[%clk 0:02:07]}  f5 {[%clk 0:01:22]} 22. exf5 {[%clk 0:02:03]}  gxf5 {[%clk 0:01:23]} 23. Nc7 {[%clk 0:01:58]}  Bb7 {[%clk 0:01:07]} 24. Nxe6 {[%clk 0:01:56]}  Qxe6 {[%clk 0:01:06]} 25. Bxb7 {[%clk 0:01:30]}  Rxb7 {[%clk 0:01:05]} 26. Be3 {[%clk 0:01:21]}  f4 {[%clk 0:00:56]} 27. Bxf4 {[%clk 0:01:20]}  Rxf4 {[%clk 0:00:50]} 28. gxf4 {[%clk 0:01:17]}  Qg4+ {[%clk 0:00:48]} 29. Kf1 {[%clk 0:01:16]}  Qh3+ {[%clk 0:00:35]} 30. Ke2 {[%clk 0:01:15]}  Qxh4 {[%clk 0:00:21]} 31. Qd5+ {[%clk 0:00:59]}  Kf8 {[%clk 0:00:20]} 32. Rc8# {[%clk 0:00:56]} 1-0


[Site "https://www.chess.com"]

[Event "Titled Tuesday Blitz January 10 Early 2023"]
[White "Guevara Sanchez, Erick Marvin"]
[Black "Buscar, Michael"]
[WhiteFideId "6700136"]
[BlackFideId "2603616"]
[WhiteElo "2073"]
[BlackElo "2041"]
[Result "0-1"]
[Round "05"]
[TimeControl "180+2"]
[Date "2023.01.10"]
[WhiteClock "0:00:08"]
[BlackClock "0:00:13"]

1. e4 {[%clk 0:03:00]}  c5 {[%clk 0:02:59]} 2. Nf3 {[%clk 0:03:00]}  Nc6 {[%clk 0:03:00]} 3. d4 {[%clk 0:02:59]}  cxd4 {[%clk 0:03:01]} 4. Nxd4 {[%clk 0:02:58]}  Nf6 {[%clk 0:03:02]} 5. Nc3 {[%clk 0:02:58]}  e5 {[%clk 0:03:01]} 6. Ndb5 {[%clk 0:02:58]}  h6 {[%clk 0:03:02]} 7. Nd5 {[%clk 0:02:50]}  Nxd5 {[%clk 0:03:02]} 8. exd5 {[%clk 0:02:51]}  a6 {[%clk 0:03:02]} 9. Nc3 {[%clk 0:02:46]}  Nb8 {[%clk 0:03:02]} 10. d6 {[%clk 0:02:44]}  Nc6 {[%clk 0:02:37]} 11. Bc4 {[%clk 0:02:42]}  Qf6 {[%clk 0:02:24]} 12. Ne4 {[%clk 0:02:38]}  Qg6 {[%clk 0:02:24]} 13. Qf3 {[%clk 0:02:32]}  Nd4 {[%clk 0:02:19]} 14. Qd3 {[%clk 0:02:26]}  f5 {[%clk 0:02:08]} 15. Ng3 {[%clk 0:02:15]}  Bxd6 {[%clk 0:01:54]} 16. c3 {[%clk 0:02:13]}  Nc6 {[%clk 0:01:38]} 17. Nxf5 {[%clk 0:02:08]}  Bc5 {[%clk 0:01:31]} 18. Be3 {[%clk 0:01:46]}  Bxe3 {[%clk 0:01:24]} 19. Nd6+ {[%clk 0:01:44]}  Ke7 {[%clk 0:01:20]} 20. Qxg6 {[%clk 0:01:42]}  Bg5 {[%clk 0:01:13]} 21. Nf5+ {[%clk 0:01:36]}  Kd8 {[%clk 0:01:12]} 22. h4 {[%clk 0:01:29]}  Bf6 {[%clk 0:01:11]} 23. O-O-O {[%clk 0:01:27]}  b5 {[%clk 0:01:10]} 24. Bb3 {[%clk 0:01:04]}  Ne7 {[%clk 0:01:08]} 25. Nxe7 {[%clk 0:01:01]}  Kxe7 {[%clk 0:01:08]} 26. Qf7+ {[%clk 0:00:49]}  Kd8 {[%clk 0:01:08]} 27. g4 {[%clk 0:00:43]}  Re8 {[%clk 0:01:08]} 28. Kb1 {[%clk 0:00:29]}  Re7 {[%clk 0:01:04]} 29. Qg8+ {[%clk 0:00:28]}  Kc7 {[%clk 0:01:04]} 30. Qd5 {[%clk 0:00:27]}  Bb7 {[%clk 0:01:01]} 31. Qd6+ {[%clk 0:00:27]}  Kd8 {[%clk 0:01:00]} 32. Rhe1 {[%clk 0:00:27]}  Rc8 {[%clk 0:00:57]} 33. g5 {[%clk 0:00:27]}  hxg5 {[%clk 0:00:52]} 34. hxg5 {[%clk 0:00:28]}  Bxg5 {[%clk 0:00:52]} 35. Rxe5 {[%clk 0:00:27]}  Rc6 {[%clk 0:00:40]} 36. Qd4 {[%clk 0:00:22]}  Bf6 {[%clk 0:00:38]} 37. Rxe7 {[%clk 0:00:19]}  Bxd4 {[%clk 0:00:38]} 38. Rf7 {[%clk 0:00:16]}  Rf6 {[%clk 0:00:30]} 39. Rxd4 {[%clk 0:00:13]}  Rxf7 {[%clk 0:00:30]} 40. Bxf7 {[%clk 0:00:14]}  Ke7 {[%clk 0:00:29]} 41. Bb3 {[%clk 0:00:15]}  Bc6 {[%clk 0:00:29]} 42. Rg4 {[%clk 0:00:15]}  Kf6 {[%clk 0:00:29]} 43. Kc2 {[%clk 0:00:15]}  g5 {[%clk 0:00:28]} 44. Kd3 {[%clk 0:00:15]}  Kf5 {[%clk 0:00:28]} 45. Rd4 {[%clk 0:00:15]}  Ke5 {[%clk 0:00:22]} 46. Bd5 {[%clk 0:00:16]}  Bxd5 {[%clk 0:00:21]} 47. b3 {[%clk 0:00:15]}  Be6 {[%clk 0:00:21]} 48. c4 {[%clk 0:00:14]}  Bf5+ {[%clk 0:00:20]} 49. Kc3 {[%clk 0:00:14]}  b4+ {[%clk 0:00:19]} 50. Kxb4 {[%clk 0:00:12]}  Kxd4 {[%clk 0:00:19]} 51. Ka5 {[%clk 0:00:13]}  Bb1 {[%clk 0:00:18]} 52. a3 {[%clk 0:00:11]}  Ba2 {[%clk 0:00:18]} 53. Kxa6 {[%clk 0:00:09]}  Bxb3 {[%clk 0:00:18]} 54. a4 {[%clk 0:00:08]}  Bxa4 {[%clk 0:00:17]} 55. Kb7 {[%clk 0:00:09]}  Kxc4 {[%clk 0:00:17]} 56. Kc7 {[%clk 0:00:10]}  Kd3 {[%clk 0:00:17]} 57. Kd6 {[%clk 0:00:07]}  Ke2 {[%clk 0:00:17]} 58. Ke5 {[%clk 0:00:08]}  Kxf2 {[%clk 0:00:14]} 59. Kf5 {[%clk 0:00:09]}  d5 {[%clk 0:00:13]} 60. Kxg5 {[%clk 0:00:08]}  d4 {[%clk 0:00:13]} 0-1


[Site "https://www.chess.com"]

[Event "Titled Tuesday Blitz January 10 Early 2023"]
[White "Leve, Nitai"]
[Black "Rosh Jain"]
[WhiteFideId "2006898"]
[BlackFideId "25789465"]
[WhiteElo "2128"]
[BlackElo "2248"]
[Result "1-0"]
[Round "05"]
[TimeControl "180+2"]
[Date "2023.01.10"]
[WhiteClock "0:00:21"]
[BlackClock "0:00:02"]

1. e4 {[%clk 0:02:57]}  c5 {[%clk 0:02:57]} 2. Nf3 {[%clk 0:02:57]}  d6 {[%clk 0:02:55]} 3. d4 {[%clk 0:02:57]}  cxd4 {[%clk 0:02:53]} 4. Qxd4 {[%clk 0:02:58]}  Nf6 {[%clk 0:02:51]} 5. Bg5 {[%clk 0:02:53]}  Nc6 {[%clk 0:02:46]} 6. Bb5 {[%clk 0:02:53]}  Bd7 {[%clk 0:02:32]} 7. Bxc6 {[%clk 0:02:48]}  bxc6 {[%clk 0:02:26]} 8. Nc3 {[%clk 0:02:38]}  e5 {[%clk 0:02:16]} 9. Qd3 {[%clk 0:02:27]}  h6 {[%clk 0:02:02]} 10. Bh4 {[%clk 0:02:27]}  g5 {[%clk 0:02:00]} 11. Bg3 {[%clk 0:02:25]}  Be7 {[%clk 0:01:57]} 12. O-O-O {[%clk 0:02:18]}  Be6 {[%clk 0:01:47]} 13. h4 {[%clk 0:02:15]}  g4 {[%clk 0:01:46]} 14. Nd2 {[%clk 0:02:15]}  Rb8 {[%clk 0:01:35]} 15. Nc4 {[%clk 0:02:13]}  Bxc4 {[%clk 0:01:29]} 16. Qxc4 {[%clk 0:02:14]}  Qb6 {[%clk 0:01:23]} 17. b3 {[%clk 0:01:57]}  h5 {[%clk 0:01:14]} 18. f3 {[%clk 0:01:52]}  Rg8 {[%clk 0:01:02]} 19. Rhf1 {[%clk 0:01:45]}  a5 {[%clk 0:00:55]} 20. Kb1 {[%clk 0:01:38]}  gxf3 {[%clk 0:00:50]} 21. Rxf3 {[%clk 0:01:37]}  Rg4 {[%clk 0:00:49]} 22. Qd3 {[%clk 0:01:30]}  Qb4 {[%clk 0:00:38]} 23. Rdf1 {[%clk 0:01:18]}  Rg6 {[%clk 0:00:29]} 24. Be1 {[%clk 0:00:59]}  Qd4 {[%clk 0:00:21]} 25. Qxd4 {[%clk 0:00:50]}  exd4 {[%clk 0:00:22]} 26. Ne2 {[%clk 0:00:50]}  Rxg2 {[%clk 0:00:19]} 27. Nxd4 {[%clk 0:00:45]}  Kd7 {[%clk 0:00:18]} 28. Bxa5 {[%clk 0:00:44]}  Nxe4 {[%clk 0:00:17]} 29. Rxf7 {[%clk 0:00:43]}  Re8 {[%clk 0:00:13]} 30. a4 {[%clk 0:00:32]}  Rg4 {[%clk 0:00:10]} 31. Nf5 {[%clk 0:00:30]}  Ke6 {[%clk 0:00:06]} 32. Ng7+ {[%clk 0:00:29]}  Kd7 {[%clk 0:00:04]} 33. Nxe8 {[%clk 0:00:29]}  Kxe8 {[%clk 0:00:04]} 34. Rh7 {[%clk 0:00:29]}  Rxh4 {[%clk 0:00:04]} 35. Be1 {[%clk 0:00:21]}  Rh3 {[%clk 0:00:03]} 36. a5 {[%clk 0:00:22]}  h4 {[%clk 0:00:02]} 37. a6 {[%clk 0:00:21]} 1-0


[Site "https://www.chess.com"]

[Event "Titled Tuesday Blitz January 10 Early 2023"]
[White "Khalafova, Narmin"]
[Black "Johnson, Ben"]
[WhiteFideId "13402625"]
[BlackFideId "2010917"]
[WhiteElo "2246"]
[BlackElo "1961"]
[Result "1/2-1/2"]
[Round "05"]
[TimeControl "180+2"]
[Date "2023.01.10"]
[WhiteClock "0:00:43"]
[BlackClock "0:00:08"]

1. e4 {[%clk 0:03:00]}  c5 {[%clk 0:02:59]} 2. Be2 {[%clk 0:03:00]}  Nc6 {[%clk 0:02:59]} 3. f4 {[%clk 0:02:59]}  g6 {[%clk 0:02:58]} 4. Nf3 {[%clk 0:02:59]}  Bg7 {[%clk 0:02:58]} 5. O-O {[%clk 0:02:59]}  d6 {[%clk 0:02:56]} 6. c3 {[%clk 0:02:59]}  Bg4 {[%clk 0:02:52]} 7. d3 {[%clk 0:02:57]}  Nf6 {[%clk 0:02:51]} 8. Be3 {[%clk 0:02:56]}  O-O {[%clk 0:02:50]} 9. Nbd2 {[%clk 0:02:55]}  Rb8 {[%clk 0:02:40]} 10. Qe1 {[%clk 0:02:54]}  b5 {[%clk 0:02:30]} 11. Qh4 {[%clk 0:02:53]}  Bxf3 {[%clk 0:02:23]} 12. Nxf3 {[%clk 0:02:51]}  Qd7 {[%clk 0:02:18]} 13. h3 {[%clk 0:02:43]}  b4 {[%clk 0:02:07]} 14. Ng5 {[%clk 0:02:26]}  h6 {[%clk 0:02:05]} 15. Nf3 {[%clk 0:02:26]}  bxc3 {[%clk 0:02:04]} 16. bxc3 {[%clk 0:02:26]}  Rb2 {[%clk 0:01:59]} 17. Bd1 {[%clk 0:02:23]}  Nh7 {[%clk 0:01:32]} 18. Bb3 {[%clk 0:02:06]}  Na5 {[%clk 0:01:20]} 19. Bd1 {[%clk 0:01:56]}  Rfb8 {[%clk 0:01:13]} 20. Nh2 {[%clk 0:01:32]}  Rb1 {[%clk 0:00:51]} 21. Rxb1 {[%clk 0:01:26]}  Rxb1 {[%clk 0:00:52]} 22. Ng4 {[%clk 0:01:22]}  h5 {[%clk 0:00:48]} 23. Nh2 {[%clk 0:01:21]}  Rxd1 {[%clk 0:00:45]} 24. Rxd1 {[%clk 0:01:19]}  Bxc3 {[%clk 0:00:43]} 25. f5 {[%clk 0:01:14]}  Bd4 {[%clk 0:00:37]} 26. Bxd4 {[%clk 0:01:10]}  cxd4 {[%clk 0:00:38]} 27. Nf3 {[%clk 0:01:08]}  Qa4 {[%clk 0:00:33]} 28. Rb1 {[%clk 0:01:01]}  Nc6 {[%clk 0:00:28]} 29. Rc1 {[%clk 0:00:57]}  Nf6 {[%clk 0:00:22]} 30. fxg6 {[%clk 0:00:54]}  fxg6 {[%clk 0:00:22]} 31. Qg5 {[%clk 0:00:54]}  Kg7 {[%clk 0:00:20]} 32. e5 {[%clk 0:00:54]}  dxe5 {[%clk 0:00:17]} 33. Nxe5 {[%clk 0:00:55]}  Nxe5 {[%clk 0:00:17]} 34. Qxe5 {[%clk 0:00:56]}  Qa3 {[%clk 0:00:13]} 35. Rc7 {[%clk 0:00:55]}  Kf7 {[%clk 0:00:11]} 36. Qxd4 {[%clk 0:00:50]}  Qa5 {[%clk 0:00:07]} 37. Qd8 {[%clk 0:00:44]}  Qe1+ {[%clk 0:00:06]} 38. Kh2 {[%clk 0:00:42]}  Ng4+ {[%clk 0:00:06]} 39. hxg4 {[%clk 0:00:41]}  Qh4+ {[%clk 0:00:06]} 40. Kg1 {[%clk 0:00:42]}  Qe1+ {[%clk 0:00:07]} 41. Kh2 {[%clk 0:00:43]}  Qh4+ {[%clk 0:00:07]} 42. Kg1 {[%clk 0:00:43]}  Qe1+ {[%clk 0:00:08]} 43. Kh2 {[%clk 0:00:43]} 1/2-1/2


[Site "https://www.chess.com"]